[Event "Titled Tuesday Blitz October 31 Late 2023"]
[White "Baghdasaryan, Vahe"]
[Black "Pantev, Veselin"]
[WhiteFideId "13303139"]
[BlackFideId "2901390"]
[WhiteElo "2383"]
[BlackElo "2680"]
[Result "0-1"]
[Round "1"]
[TimeControl "180+1"]
[Date "2023.10.31"]
[WhiteClock "0:00:00"]
[BlackClock "0:01:22"]
[Board "90"]

1. e4 {[%clk 0:02:58]}  c6 {[%clk 0:02:59]} 2. c4 {[%clk 0:02:56]}  e5 {[%clk 0:02:58]} 3. Nf3 {[%clk 0:02:54]}  Qc7 {[%clk 0:02:57]} 4. Nc3 {[%clk 0:02:51]}  Nf6 {[%clk 0:02:54]} 5. Be2 {[%clk 0:02:36]}  Bb4 {[%clk 0:02:54]} 6. d3 {[%clk 0:02:33]}  d6 {[%clk 0:02:53]} 7. O-O {[%clk 0:02:33]}  Bg4 {[%clk 0:02:53]} 8. h3 {[%clk 0:02:26]}  Bxf3 {[%clk 0:02:53]} 9. Bxf3 {[%clk 0:02:26]}  Nbd7 {[%clk 0:02:51]} 10. Ne2 {[%clk 0:02:26]}  O-O {[%clk 0:02:45]} 11. Ng3 {[%clk 0:02:26]}  Bc5 {[%clk 0:02:40]} 12. Rb1 {[%clk 0:02:23]}  a5 {[%clk 0:02:39]} 13. Nf5 {[%clk 0:02:16]}  Rfe8 {[%clk 0:02:39]} 14. Be3 {[%clk 0:02:09]}  Nf8 {[%clk 0:02:38]} 15. a3 {[%clk 0:02:00]}  a4 {[%clk 0:02:36]} 16. Qd2 {[%clk 0:01:54]}  Ne6 {[%clk 0:02:36]} 17. g3 {[%clk 0:01:48]}  g6 {[%clk 0:02:35]} 18. Nh6+ {[%clk 0:01:46]}  Kg7 {[%clk 0:02:35]} 19. Ng4 {[%clk 0:01:46]}  Nxg4 {[%clk 0:02:29]} 20. hxg4 {[%clk 0:01:40]}  Bxe3 {[%clk 0:02:26]} 21. Qxe3 {[%clk 0:01:29]}  h6 {[%clk 0:02:24]} 22. Kg2 {[%clk 0:01:28]}  Rh8 {[%clk 0:02:21]} 23. Rh1 {[%clk 0:01:26]}  Qa5 {[%clk 0:02:21]} 24. Rbf1 {[%clk 0:01:22]}  Qc5 {[%clk 0:02:21]} 25. Qd2 {[%clk 0:01:19]}  b5 {[%clk 0:02:15]} 26. cxb5 {[%clk 0:01:00]}  Qxb5 {[%clk 0:02:12]} 27. Be2 {[%clk 0:00:43]}  Qa5 {[%clk 0:02:11]} 28. Qc1 {[%clk 0:00:39]}  Qc5 {[%clk 0:02:10]} 29. Qd2 {[%clk 0:00:37]}  g5 {[%clk 0:02:10]} 30. Rc1 {[%clk 0:00:28]}  Qb6 {[%clk 0:02:10]} 31. Rc4 {[%clk 0:00:22]}  Rhb8 {[%clk 0:02:09]} 32. Rb4 {[%clk 0:00:20]}  Qc7 {[%clk 0:02:05]} 33. Rc1 {[%clk 0:00:19]}  c5 {[%clk 0:02:04]} 34. Rxb8 {[%clk 0:00:18]}  Rxb8 {[%clk 0:02:04]} 35. Bd1 {[%clk 0:00:19]}  Qa7 {[%clk 0:02:01]} 36. Rc4 {[%clk 0:00:19]}  Qb6 {[%clk 0:01:59]} 37. Bxa4 {[%clk 0:00:16]}  Qxb2 {[%clk 0:01:58]} 38. Qxb2 {[%clk 0:00:14]}  Rxb2 {[%clk 0:01:58]} 39. Bd7 {[%clk 0:00:15]}  Nd4 {[%clk 0:01:57]} 40. Ra4 {[%clk 0:00:11]}  Ra2 {[%clk 0:01:52]} 41. Ra7 {[%clk 0:00:10]}  Kf8 {[%clk 0:01:51]} 42. a4 {[%clk 0:00:10]}  Nb3 {[%clk 0:01:49]} 43. Bc6 {[%clk 0:00:07]}  Nc1 {[%clk 0:01:46]} 44. Bd5 {[%clk 0:00:08]}  Ra3 {[%clk 0:01:44]} 45. Rxf7+ {[%clk 0:00:07]}  Ke8 {[%clk 0:01:45]} 46. Ra7 {[%clk 0:00:08]}  Nxd3 {[%clk 0:01:45]} 47. a5 {[%clk 0:00:09]}  Nb4 {[%clk 0:01:45]} 48. Bc4 {[%clk 0:00:06]}  Rc3 {[%clk 0:01:44]} 49. Bb5+ {[%clk 0:00:06]}  Kd8 {[%clk 0:01:44]} 50. Rd7+ {[%clk 0:00:06]}  Kc8 {[%clk 0:01:44]} 51. Rxd6 {[%clk 0:00:07]}  Ra3 {[%clk 0:01:44]} 52. a6 {[%clk 0:00:06]}  Kc7 {[%clk 0:01:43]} 53. Rxh6 {[%clk 0:00:07]}  Ra5 {[%clk 0:01:39]} 54. Bc4 {[%clk 0:00:06]}  Ra4 {[%clk 0:01:40]} 55. Re6 {[%clk 0:00:06]}  Nc6 {[%clk 0:01:39]} 56. Bb5 {[%clk 0:00:05]}  Nd4 {[%clk 0:01:40]} 57. Bxa4 {[%clk 0:00:05]}  Nxe6 {[%clk 0:01:40]} 58. Bb3 {[%clk 0:00:04]}  Nd4 {[%clk 0:01:38]} 59. Bc4 {[%clk 0:00:04]}  Kb6 {[%clk 0:01:38]} 60. Kf1 {[%clk 0:00:04]}  Nc6 {[%clk 0:01:39]} 61. Ke1 {[%clk 0:00:04]}  Na5 {[%clk 0:01:39]} 62. Be2 {[%clk 0:00:04]}  c4 {[%clk 0:01:40]} 63. Kd2 {[%clk 0:00:05]}  Kxa6 {[%clk 0:01:40]} 64. Kc3 {[%clk 0:00:06]}  Kb5 {[%clk 0:01:41]} 65. f3 {[%clk 0:00:06]}  Kc5 {[%clk 0:01:41]} 66. Bf1 {[%clk 0:00:06]}  Nc6 {[%clk 0:01:41]} 67. Be2 {[%clk 0:00:07]}  Nd4 {[%clk 0:01:41]} 68. Bxc4 {[%clk 0:00:07]}  Nxf3 {[%clk 0:01:41]} 69. Be6 {[%clk 0:00:07]}  Nd4 {[%clk 0:01:41]} 70. Bf5 {[%clk 0:00:07]}  Nb5+ {[%clk 0:01:40]} 71. Kd3 {[%clk 0:00:07]}  Kb4 {[%clk 0:01:40]} 72. Be6 {[%clk 0:00:06]}  Nd6 {[%clk 0:01:40]} 73. Bf5 {[%clk 0:00:06]}  Nb7 {[%clk 0:01:40]} 74. Be6 {[%clk 0:00:06]}  Nc5+ {[%clk 0:01:41]} 75. Ke3 {[%clk 0:00:05]}  Kc3 {[%clk 0:01:41]} 76. Bf5 {[%clk 0:00:05]}  Na4 {[%clk 0:01:41]} 77. Bg6 {[%clk 0:00:05]}  Nb2 {[%clk 0:01:41]} 78. Bf5 {[%clk 0:00:05]}  Nc4+ {[%clk 0:01:41]} 79. Ke2 {[%clk 0:00:06]}  Kd4 {[%clk 0:01:42]} 80. Bg6 {[%clk 0:00:05]}  Nd6 {[%clk 0:01:40]} 81. Kf3 {[%clk 0:00:06]}  Nb7 {[%clk 0:01:40]} 82. Bf5 {[%clk 0:00:07]}  Nc5 {[%clk 0:01:40]} 83. Bg6 {[%clk 0:00:07]}  Nb3 {[%clk 0:01:40]} 84. Bf5 {[%clk 0:00:08]}  Nd2+ {[%clk 0:01:40]} 85. Kg2 {[%clk 0:00:08]}  Nxe4 {[%clk 0:01:41]} 86. Kf3 {[%clk 0:00:08]}  Nc3 {[%clk 0:01:41]} 87. Bg6 {[%clk 0:00:06]}  Nb5 {[%clk 0:01:35]} 88. Kf2 {[%clk 0:00:05]}  e4 {[%clk 0:01:35]} 89. Bf5 {[%clk 0:00:06]}  Nd6 {[%clk 0:01:35]} 90. Bg6 {[%clk 0:00:06]}  Nc4 {[%clk 0:01:36]} 91. Ke2 {[%clk 0:00:06]}  Ne5 {[%clk 0:01:36]} 92. Bf5 {[%clk 0:00:06]}  Nf7 {[%clk 0:01:32]} 93. Be6 {[%clk 0:00:05]}  Nd6 {[%clk 0:01:32]} 94. Bd7 {[%clk 0:00:05]}  e3 {[%clk 0:01:32]} 95. Bc6 {[%clk 0:00:05]}  Nc4 {[%clk 0:01:32]} 96. Bd7 {[%clk 0:00:05]}  Ne5 {[%clk 0:01:32]} 97. Bf5 {[%clk 0:00:05]}  Nf7 {[%clk 0:01:30]} 98. Be6 {[%clk 0:00:05]}  Nd8 {[%clk 0:01:30]} 99. Bf5 {[%clk 0:00:05]}  Nc6 {[%clk 0:01:30]} 100. Bd7 {[%clk 0:00:05]}  Nb4 {[%clk 0:01:30]} 101. Bf5 {[%clk 0:00:05]}  Na2 {[%clk 0:01:31]} 102. Bc2 {[%clk 0:00:04]}  Nc3+ {[%clk 0:01:29]} 103. Ke1 {[%clk 0:00:04]}  Ne4 {[%clk 0:01:26]} 104. Ke2 {[%clk 0:00:02]}  Nxg3+ {[%clk 0:01:26]} 105. Kf3 {[%clk 0:00:03]}  Nf1 {[%clk 0:01:26]} 106. Ke2 {[%clk 0:00:03]}  Nd2 {[%clk 0:01:26]} 107. Bf5 {[%clk 0:00:02]}  Nc4 {[%clk 0:01:26]} 108. Bd3 {[%clk 0:00:02]}  Nd6 {[%clk 0:01:25]} 109. Bg6 {[%clk 0:00:02]}  Nb7 {[%clk 0:01:23]} 110. Bf5 {[%clk 0:00:03]}  Na5 {[%clk 0:01:23]} 111. Bd3 {[%clk 0:00:03]}  Nb3 {[%clk 0:01:22]} 112. Bc2 {[%clk 0:00:03]}  Na5 {[%clk 0:01:21]} 113. Bd3 {[%clk 0:00:02]}  Nc6 {[%clk 0:01:21]} 114. Bf5 {[%clk 0:00:02]}  Ne5 {[%clk 0:01:21]} 115. Bg6 {[%clk 0:00:03]}  Nxg6 {[%clk 0:01:21]} 116. Kf3 {[%clk 0:00:03]}  Ne5+ {[%clk 0:01:21]} 117. Ke2 {[%clk 0:00:00]}  Ke4 {[%clk 0:01:22]} 0-1


[Site "https://www.chess.com"]

[Event "Titled Tuesday Blitz October 31 Late 2023"]
[White "Ljukin, Sergei"]
[Black "Rosen, Eric"]
[WhiteFideId "14102200"]
[BlackFideId "2032562"]
[WhiteElo "2378"]
[BlackElo "2671"]
[Result "0-1"]
[Round "1"]
[TimeControl "180+1"]
[Date "2023.10.31"]
[WhiteClock "0:00:14"]
[BlackClock "0:00:33"]
[Board "92"]

1. e4 {[%clk 0:02:59]}  c5 {[%clk 0:02:59]} 2. Nf3 {[%clk 0:02:59]}  e6 {[%clk 0:02:59]} 3. d4 {[%clk 0:02:59]}  cxd4 {[%clk 0:03:00]} 4. Nxd4 {[%clk 0:03:00]}  Nc6 {[%clk 0:03:00]} 5. Nc3 {[%clk 0:03:00]}  Qc7 {[%clk 0:03:00]} 6. Be3 {[%clk 0:03:00]}  a6 {[%clk 0:03:00]} 7. Qd2 {[%clk 0:03:00]}  Nf6 {[%clk 0:03:00]} 8. f3 {[%clk 0:03:00]}  Ne5 {[%clk 0:03:00]} 9. O-O-O {[%clk 0:02:58]}  b5 {[%clk 0:02:59]} 10. g4 {[%clk 0:02:57]}  d6 {[%clk 0:02:59]} 11. h4 {[%clk 0:02:57]}  Be7 {[%clk 0:02:53]} 12. h5 {[%clk 0:02:56]}  Nc4 {[%clk 0:02:30]} 13. Bxc4 {[%clk 0:02:54]}  Qxc4 {[%clk 0:02:31]} 14. g5 {[%clk 0:02:37]}  Nd7 {[%clk 0:02:31]} 15. g6 {[%clk 0:02:36]}  Ne5 {[%clk 0:02:12]} 16. gxf7+ {[%clk 0:02:33]}  Nxf7 {[%clk 0:02:08]} 17. Kb1 {[%clk 0:02:23]}  Bd7 {[%clk 0:02:06]} 18. f4 {[%clk 0:02:19]}  b4 {[%clk 0:01:53]} 19. Nce2 {[%clk 0:02:18]}  a5 {[%clk 0:01:53]} 20. Rc1 {[%clk 0:02:04]}  a4 {[%clk 0:01:49]} 21. c3 {[%clk 0:02:03]}  b3 {[%clk 0:01:37]} 22. a3 {[%clk 0:02:01]}  e5 {[%clk 0:01:37]} 23. fxe5 {[%clk 0:01:35]}  dxe5 {[%clk 0:01:37]} 24. Rhg1 {[%clk 0:01:34]}  exd4 {[%clk 0:01:31]} 25. cxd4 {[%clk 0:01:34]}  Qe6 {[%clk 0:01:25]} 26. Qd3 {[%clk 0:01:27]}  O-O {[%clk 0:01:19]} 27. Nf4 {[%clk 0:01:21]}  Qa6 {[%clk 0:01:06]} 28. Qd2 {[%clk 0:01:16]}  Bg5 {[%clk 0:00:50]} 29. e5 {[%clk 0:01:08]}  Bf5+ {[%clk 0:00:49]} 30. Ka1 {[%clk 0:01:07]}  Qh6 {[%clk 0:00:47]} 31. Rg3 {[%clk 0:00:31]}  Rac8 {[%clk 0:00:41]} 32. Rf1 {[%clk 0:00:26]}  Rc2 {[%clk 0:00:40]} 33. Qd1 {[%clk 0:00:25]}  Nd6 {[%clk 0:00:34]} 34. exd6 {[%clk 0:00:22]}  Qxd6 {[%clk 0:00:34]} 35. Rxg5 {[%clk 0:00:14]}  Qxa3+ {[%clk 0:00:33]} 0-1


[Site "https://www.chess.com"]

[Event "Titled Tuesday Blitz October 31 Late 2023"]
[White "Stanojevic, Ilija"]
[Black "Principe, Alexander"]
[WhiteFideId "959995"]
[BlackFideId "3804542"]
[WhiteElo "2363"]
[BlackElo "2667"]
[Result "1-0"]
[Round "1"]
[TimeControl "180+1"]
[Date "2023.10.31"]
[WhiteClock "0:00:12"]
[BlackClock "0:00:00"]
[Board "96"]

1. d4 {[%clk 0:02:59]}  Nf6 {[%clk 0:02:58]} 2. c4 {[%clk 0:02:59]}  g6 {[%clk 0:02:58]} 3. Nc3 {[%clk 0:02:59]}  Bg7 {[%clk 0:02:58]} 4. g3 {[%clk 0:02:58]}  O-O {[%clk 0:02:59]} 5. Bg2 {[%clk 0:02:58]}  d6 {[%clk 0:02:59]} 6. Nf3 {[%clk 0:02:59]}  c6 {[%clk 0:03:00]} 7. O-O {[%clk 0:02:58]}  Qa5 {[%clk 0:03:01]} 8. h3 {[%clk 0:02:46]}  e5 {[%clk 0:02:56]} 9. e4 {[%clk 0:02:42]}  Nbd7 {[%clk 0:02:55]} 10. Be3 {[%clk 0:02:36]}  exd4 {[%clk 0:02:40]} 11. Nxd4 {[%clk 0:02:35]}  Re8 {[%clk 0:02:41]} 12. Re1 {[%clk 0:02:24]}  h5 {[%clk 0:02:29]} 13. Qc2 {[%clk 0:02:20]}  Nc5 {[%clk 0:02:21]} 14. a3 {[%clk 0:02:13]}  Qc7 {[%clk 0:02:20]} 15. b4 {[%clk 0:02:08]}  Ne6 {[%clk 0:02:20]} 16. Rad1 {[%clk 0:02:08]}  Nxd4 {[%clk 0:02:19]} 17. Bxd4 {[%clk 0:02:09]}  Be6 {[%clk 0:02:19]} 18. c5 {[%clk 0:02:07]}  dxc5 {[%clk 0:02:18]} 19. bxc5 {[%clk 0:02:02]}  Rad8 {[%clk 0:02:17]} 20. e5 {[%clk 0:01:50]}  Nd5 {[%clk 0:02:16]} 21. Ne4 {[%clk 0:01:49]}  Bf5 {[%clk 0:02:06]} 22. f4 {[%clk 0:01:43]}  Bxe4 {[%clk 0:01:48]} 23. Bxe4 {[%clk 0:01:43]}  h4 {[%clk 0:01:47]} 24. Qf2 {[%clk 0:01:21]}  hxg3 {[%clk 0:01:44]} 25. Qxg3 {[%clk 0:01:22]}  Qe7 {[%clk 0:01:32]} 26. h4 {[%clk 0:01:18]}  Bh6 {[%clk 0:01:30]} 27. Rf1 {[%clk 0:01:14]}  Nf6 {[%clk 0:01:26]} 28. Bf3 {[%clk 0:01:12]}  Nh7 {[%clk 0:01:14]} 29. h5 {[%clk 0:01:08]}  Nf8 {[%clk 0:01:11]} 30. Be4 {[%clk 0:01:06]}  g5 {[%clk 0:01:03]} 31. Be3 {[%clk 0:00:40]}  Ne6 {[%clk 0:00:38]} 32. Rd6 {[%clk 0:00:35]}  Kh8 {[%clk 0:00:26]} 33. Rfd1 {[%clk 0:00:35]}  Rg8 {[%clk 0:00:19]} 34. f5 {[%clk 0:00:34]}  b6 {[%clk 0:00:13]} 35. fxe6 {[%clk 0:00:34]}  fxe6 {[%clk 0:00:12]} 36. cxb6 {[%clk 0:00:30]}  axb6 {[%clk 0:00:12]} 37. Bxb6 {[%clk 0:00:30]}  Rdf8 {[%clk 0:00:11]} 38. Be3 {[%clk 0:00:26]}  Qg7 {[%clk 0:00:04]} 39. Bg6 {[%clk 0:00:25]}  Rf4 {[%clk 0:00:03]} 40. Bxf4 {[%clk 0:00:23]}  gxf4 {[%clk 0:00:03]} 41. Qg4 {[%clk 0:00:17]}  Qxe5 {[%clk 0:00:03]} 42. Rxe6 {[%clk 0:00:18]}  Qc5+ {[%clk 0:00:03]} 43. Kh1 {[%clk 0:00:16]}  f3 {[%clk 0:00:04]} 44. Qxf3 {[%clk 0:00:08]}  Qc4 {[%clk 0:00:03]} 45. Re7 {[%clk 0:00:07]}  Qh4+ {[%clk 0:00:03]} 46. Kg2 {[%clk 0:00:06]}  Qxe7 {[%clk 0:00:04]} 47. Rf1 {[%clk 0:00:06]}  Qg5+ {[%clk 0:00:04]} 48. Qg3 {[%clk 0:00:06]}  Qxg3+ {[%clk 0:00:04]} 49. Kxg3 {[%clk 0:00:07]}  c5 {[%clk 0:00:05]} 50. Rf7 {[%clk 0:00:08]}  Bg7 {[%clk 0:00:05]} 51. h6 {[%clk 0:00:07]}  c4 {[%clk 0:00:03]} 52. hxg7+ {[%clk 0:00:07]}  Rxg7 {[%clk 0:00:04]} 53. Rxg7 {[%clk 0:00:07]}  Kxg7 {[%clk 0:00:05]} 54. Bc2 {[%clk 0:00:07]}  Kf6 {[%clk 0:00:06]} 55. Kf3 {[%clk 0:00:08]}  Ke6 {[%clk 0:00:07]} 56. Ke4 {[%clk 0:00:09]}  Kd6 {[%clk 0:00:07]} 57. Kd4 {[%clk 0:00:09]}  c3 {[%clk 0:00:08]} 58. Kxc3 {[%clk 0:00:09]}  Kc6 {[%clk 0:00:09]} 59. a4 {[%clk 0:00:10]}  Kb6 {[%clk 0:00:10]} 60. Kb4 {[%clk 0:00:10]}  Ka6 {[%clk 0:00:10]} 61. Be4 {[%clk 0:00:11]}  Ka7 {[%clk 0:00:11]} 62. Kb5 {[%clk 0:00:12]}  Kb8 {[%clk 0:00:09]} 63. a5 {[%clk 0:00:12]}  Ka7 {[%clk 0:00:10]} 64. a6 {[%clk 0:00:11]}  Kb8 {[%clk 0:00:11]} 65. Kb6 {[%clk 0:00:12]}  Kc8 {[%clk 0:00:00]} 66. a7 {[%clk 0:00:12]} 1-0


[Site "https://www.chess.com"]

[Event "Titled Tuesday Blitz October 31 Late 2023"]
[White "Williams, John M"]
[Black "Piesik, Piotr"]
[WhiteFideId "2046636"]
[BlackFideId "1136194"]
[WhiteElo "2359"]
[BlackElo "2653"]
[Result "1/2-1/2"]
[Round "1"]
[TimeControl "180+1"]
[Date "2023.10.31"]
[WhiteClock "0:00:13"]
[BlackClock "0:00:16"]
[Board "102"]

1. c4 {[%clk 0:02:58]}  g6 {[%clk 0:02:56]} 2. g3 {[%clk 0:02:56]}  Bg7 {[%clk 0:02:56]} 3. Bg2 {[%clk 0:02:56]}  Nc6 {[%clk 0:02:57]} 4. Nf3 {[%clk 0:02:54]}  d6 {[%clk 0:02:57]} 5. d4 {[%clk 0:02:49]}  Nf6 {[%clk 0:02:54]} 6. Nc3 {[%clk 0:02:47]}  O-O {[%clk 0:02:55]} 7. O-O {[%clk 0:02:47]}  a6 {[%clk 0:02:54]} 8. h3 {[%clk 0:02:37]}  Rb8 {[%clk 0:02:54]} 9. e4 {[%clk 0:02:35]}  b5 {[%clk 0:02:51]} 10. d5 {[%clk 0:02:35]}  Na5 {[%clk 0:02:50]} 11. cxb5 {[%clk 0:02:34]}  axb5 {[%clk 0:02:50]} 12. b4 {[%clk 0:02:34]}  Nc4 {[%clk 0:02:45]} 13. Nd4 {[%clk 0:02:34]}  Bd7 {[%clk 0:02:37]} 14. Re1 {[%clk 0:01:52]}  e6 {[%clk 0:02:34]} 15. Bg5 {[%clk 0:01:44]}  h6 {[%clk 0:02:32]} 16. Bc1 {[%clk 0:01:38]}  exd5 {[%clk 0:02:29]} 17. exd5 {[%clk 0:01:38]}  Re8 {[%clk 0:02:27]} 18. Rxe8+ {[%clk 0:01:33]}  Qxe8 {[%clk 0:02:28]} 19. Rb1 {[%clk 0:01:26]}  Qe7 {[%clk 0:02:02]} 20. Bf1 {[%clk 0:01:14]}  Re8 {[%clk 0:01:15]} 21. Ncxb5 {[%clk 0:00:34]}  Qe1 {[%clk 0:01:03]} 22. Bf4 {[%clk 0:00:32]}  Qxd1 {[%clk 0:00:58]} 23. Rxd1 {[%clk 0:00:32]}  Bxb5 {[%clk 0:00:31]} 24. Nxb5 {[%clk 0:00:31]}  Nb6 {[%clk 0:00:29]} 25. Nxc7 {[%clk 0:00:30]}  Rd8 {[%clk 0:00:30]} 26. Bg2 {[%clk 0:00:21]}  g5 {[%clk 0:00:28]} 27. Be3 {[%clk 0:00:20]}  Nc4 {[%clk 0:00:28]} 28. Bd4 {[%clk 0:00:19]}  Nd7 {[%clk 0:00:20]} 29. b5 {[%clk 0:00:18]}  Bxd4 {[%clk 0:00:19]} 30. Rxd4 {[%clk 0:00:19]}  Ndb6 {[%clk 0:00:19]} 31. a4 {[%clk 0:00:17]}  Rc8 {[%clk 0:00:18]} 32. a5 {[%clk 0:00:17]}  Nxa5 {[%clk 0:00:18]} 33. Na6 {[%clk 0:00:14]}  Rc1+ {[%clk 0:00:18]} 34. Kh2 {[%clk 0:00:13]}  Kf8 {[%clk 0:00:17]} 35. Nb4 {[%clk 0:00:13]}  Rc4 {[%clk 0:00:17]} 36. Rxc4 {[%clk 0:00:12]}  Naxc4 {[%clk 0:00:18]} 37. Nc6 {[%clk 0:00:12]}  Na3 {[%clk 0:00:17]} 38. Nd4 {[%clk 0:00:12]}  h5 {[%clk 0:00:16]} 39. g4 {[%clk 0:00:12]}  hxg4 {[%clk 0:00:16]} 40. hxg4 {[%clk 0:00:12]}  Nb1 {[%clk 0:00:16]} 41. Kg3 {[%clk 0:00:13]}  Nc3 {[%clk 0:00:16]} 42. f4 {[%clk 0:00:12]}  gxf4+ {[%clk 0:00:16]} 43. Kxf4 {[%clk 0:00:13]}  Ncxd5+ {[%clk 0:00:16]} 44. Bxd5 {[%clk 0:00:14]}  Nxd5+ {[%clk 0:00:17]} 45. Ke4 {[%clk 0:00:14]}  Nb6 {[%clk 0:00:18]} 46. Nf5 {[%clk 0:00:14]}  d5+ {[%clk 0:00:16]} 47. Kd4 {[%clk 0:00:14]}  Ke8 {[%clk 0:00:17]} 48. Kc5 {[%clk 0:00:15]}  Na4+ {[%clk 0:00:17]} 49. Kxd5 {[%clk 0:00:15]}  Kd7 {[%clk 0:00:18]} 50. Ke5 {[%clk 0:00:15]}  Nc3 {[%clk 0:00:17]} 51. Kf6 {[%clk 0:00:14]}  Nxb5 {[%clk 0:00:17]} 52. Kxf7 {[%clk 0:00:13]}  Na7 {[%clk 0:00:14]} 53. g5 {[%clk 0:00:13]}  Nc6 {[%clk 0:00:15]} 54. g6 {[%clk 0:00:13]}  Ne5+ {[%clk 0:00:15]} 55. Kf6 {[%clk 0:00:13]}  Nxg6 {[%clk 0:00:16]} 1/2-1/2


[Site "https://www.chess.com"]

[Event "Titled Tuesday Blitz October 31 Late 2023"]
[White "Volkov, Maksim"]
[Black "Lopez Del Alamo, Antonio"]
[WhiteFideId "54123070"]
[BlackFideId "2227339"]
[WhiteElo "2637"]
[BlackElo "2343"]
[Result "1-0"]
[Round "1"]
[TimeControl "180+1"]
[Date "2023.10.31"]
[WhiteClock "0:00:14"]
[BlackClock "0:00:11"]
[Board "107"]

1. e4 {[%clk 0:03:00]}  c5 {[%clk 0:02:58]} 2. Nf3 {[%clk 0:03:00]}  e6 {[%clk 0:02:58]} 3. d4 {[%clk 0:03:00]}  cxd4 {[%clk 0:02:57]} 4. Nxd4 {[%clk 0:03:00]}  Nf6 {[%clk 0:02:57]} 5. Nc3 {[%clk 0:02:58]}  Nc6 {[%clk 0:02:57]} 6. f3 {[%clk 0:02:57]}  d5 {[%clk 0:02:54]} 7. exd5 {[%clk 0:02:49]}  exd5 {[%clk 0:02:50]} 8. Bb5 {[%clk 0:02:45]}  Bc5 {[%clk 0:02:43]} 9. Nxc6 {[%clk 0:02:37]}  bxc6 {[%clk 0:02:39]} 10. Bxc6+ {[%clk 0:02:37]}  Bd7 {[%clk 0:02:39]} 11. Bxa8 {[%clk 0:02:37]}  Qxa8 {[%clk 0:02:39]} 12. Qe2+ {[%clk 0:02:36]}  Kd8 {[%clk 0:02:32]} 13. Kd1 {[%clk 0:02:25]}  Re8 {[%clk 0:02:12]} 14. Qd3 {[%clk 0:02:25]}  d4 {[%clk 0:02:07]} 15. Ne2 {[%clk 0:02:23]}  Qd5 {[%clk 0:01:41]} 16. Bd2 {[%clk 0:01:44]}  Bf5 {[%clk 0:01:25]} 17. Qb5 {[%clk 0:01:20]}  d3 {[%clk 0:00:59]} 18. cxd3 {[%clk 0:01:03]}  Bxd3 {[%clk 0:00:58]} 19. Qa5+ {[%clk 0:01:03]}  Kc8 {[%clk 0:00:30]} 20. Nf4 {[%clk 0:00:56]}  Qc4 {[%clk 0:00:20]} 21. Rc1 {[%clk 0:00:37]}  Be2+ {[%clk 0:00:20]} 22. Nxe2 {[%clk 0:00:38]}  Qxe2+ {[%clk 0:00:20]} 23. Kc2 {[%clk 0:00:39]}  Bb6 {[%clk 0:00:18]} 24. Kb1+ {[%clk 0:00:36]}  Kb8 {[%clk 0:00:18]} 25. Bf4+ {[%clk 0:00:33]}  Kb7 {[%clk 0:00:18]} 26. Qa4 {[%clk 0:00:16]}  Qd3+ {[%clk 0:00:17]} 27. Ka1 {[%clk 0:00:15]}  Rc8 {[%clk 0:00:14]} 28. Rxc8 {[%clk 0:00:14]}  Kxc8 {[%clk 0:00:15]} 29. Rd1 {[%clk 0:00:14]}  Qe2 {[%clk 0:00:12]} 30. Qc6+ {[%clk 0:00:13]}  Bc7 {[%clk 0:00:11]} 31. Qxc7# {[%clk 0:00:14]} 1-0


[Site "https://www.chess.com"]

[Event "Titled Tuesday Blitz October 31 Late 2023"]
[White "Bokros, Albert"]
[Black "Zeynalli, Rashad"]
[WhiteFideId "710458"]
[BlackFideId "13403320"]
[WhiteElo "2340"]
[BlackElo "2634"]
[Result "1/2-1/2"]
[Round "1"]
[TimeControl "180+1"]
[Date "2023.10.31"]
[WhiteClock "0:02:48"]
[BlackClock "0:01:44"]
[Board "108"]

1. e4 {[%clk 0:03:00]}  c5 {[%clk 0:02:59]} 2. Nf3 {[%clk 0:03:01]}  d6 {[%clk 0:03:00]} 3. d4 {[%clk 0:03:01]}  cxd4 {[%clk 0:03:01]} 4. Nxd4 {[%clk 0:03:02]}  Nf6 {[%clk 0:03:01]} 5. Nc3 {[%clk 0:03:03]}  g6 {[%clk 0:03:02]} 6. Be3 {[%clk 0:03:02]}  Bg7 {[%clk 0:03:02]} 7. f3 {[%clk 0:03:03]}  O-O {[%clk 0:03:03]} 8. Qd2 {[%clk 0:03:03]}  Nc6 {[%clk 0:03:03]} 9. g4 {[%clk 0:03:04]}  Be6 {[%clk 0:03:02]} 10. Nxe6 {[%clk 0:03:00]}  fxe6 {[%clk 0:03:02]} 11. O-O-O {[%clk 0:03:01]}  Ne5 {[%clk 0:03:00]} 12. Be2 {[%clk 0:03:00]}  Qc8 {[%clk 0:03:00]} 13. h4 {[%clk 0:02:58]}  Nfd7 {[%clk 0:02:54]} 14. h5 {[%clk 0:02:58]}  Nxf3 {[%clk 0:02:50]} 15. Nd5 {[%clk 0:02:56]}  Nxd2 {[%clk 0:02:30]} 16. Nxe7+ {[%clk 0:02:55]}  Kf7 {[%clk 0:02:31]} 17. Nxc8 {[%clk 0:02:56]}  Raxc8 {[%clk 0:02:27]} 18. hxg6+ {[%clk 0:02:50]}  hxg6 {[%clk 0:02:26]} 19. Rxd2 {[%clk 0:02:51]}  Ke7 {[%clk 0:02:22]} 20. Bg5+ {[%clk 0:02:50]}  Bf6 {[%clk 0:02:22]} 21. Rh7+ {[%clk 0:02:49]}  Rf7 {[%clk 0:02:18]} 22. Bxf6+ {[%clk 0:02:48]}  Nxf6 {[%clk 0:02:17]} 23. Rxf7+ {[%clk 0:02:48]}  Kxf7 {[%clk 0:01:44]} 24. Rxd6 {[%clk 0:02:48]} 1/2-1/2


[Site "https://www.chess.com"]

[Event "Titled Tuesday Blitz October 31 Late 2023"]
[White "Pinheiro, Iung Alicio de O."]
[Black "Rose, Felix"]
[WhiteFideId "2104350"]
[BlackFideId "5105722"]
[WhiteElo "2628"]
[BlackElo "2339"]
[Result "1-0"]
[Round "1"]
[TimeControl "180+1"]
[Date "2023.10.31"]
[WhiteClock "0:00:19"]
[BlackClock "0:00:14"]
[Board "109"]

1. d4 {[%clk 0:02:56]}  Nf6 {[%clk 0:02:59]} 2. Nf3 {[%clk 0:02:52]}  d5 {[%clk 0:02:59]} 3. Bg5 {[%clk 0:02:53]}  Nbd7 {[%clk 0:02:58]} 4. Nbd2 {[%clk 0:02:51]}  h6 {[%clk 0:02:55]} 5. Bh4 {[%clk 0:02:47]}  e6 {[%clk 0:02:55]} 6. e3 {[%clk 0:02:47]}  c5 {[%clk 0:02:55]} 7. c3 {[%clk 0:02:46]}  Be7 {[%clk 0:02:54]} 8. Bd3 {[%clk 0:02:45]}  b6 {[%clk 0:02:51]} 9. O-O {[%clk 0:02:42]}  Bb7 {[%clk 0:02:52]} 10. Ne5 {[%clk 0:02:42]}  Ne4 {[%clk 0:02:48]} 11. Bxe7 {[%clk 0:02:19]}  Qxe7 {[%clk 0:02:49]} 12. Bb5 {[%clk 0:02:12]}  Nf6 {[%clk 0:02:46]} 13. f4 {[%clk 0:02:08]}  a6 {[%clk 0:02:41]} 14. Bd3 {[%clk 0:02:02]}  Ne4 {[%clk 0:02:38]} 15. Bxe4 {[%clk 0:01:53]}  dxe4 {[%clk 0:02:38]} 16. Nxd7 {[%clk 0:01:49]}  Qxd7 {[%clk 0:02:38]} 17. Nc4 {[%clk 0:01:49]}  Qc7 {[%clk 0:02:30]} 18. dxc5 {[%clk 0:01:44]}  bxc5 {[%clk 0:02:28]} 19. Nd6+ {[%clk 0:00:38]}  Ke7 {[%clk 0:02:27]} 20. Nc4 {[%clk 0:00:38]}  Rad8 {[%clk 0:02:18]} 21. Qg4 {[%clk 0:00:36]}  g6 {[%clk 0:02:14]} 22. Qh4+ {[%clk 0:00:34]}  Kf8 {[%clk 0:02:06]} 23. Qf6 {[%clk 0:00:33]}  Kg8 {[%clk 0:02:00]} 24. Rad1 {[%clk 0:00:30]}  Kh7 {[%clk 0:02:00]} 25. Ne5 {[%clk 0:00:29]}  Rhf8 {[%clk 0:01:36]} 26. h4 {[%clk 0:00:24]}  h5 {[%clk 0:01:25]} 27. g4 {[%clk 0:00:23]}  hxg4 {[%clk 0:01:15]} 28. h5 {[%clk 0:00:23]}  gxh5 {[%clk 0:01:03]} 29. Kg2 {[%clk 0:00:22]}  c4 {[%clk 0:00:14]} 30. Rh1 {[%clk 0:00:19]} 1-0


[Site "https://www.chess.com"]